Cogmind - Beta 13 X1 @@@ ROGUE MODE // 2023.10.10 @ 18:41:08 Player: VR-DUX Result: Destroyed by DG-ZTG(R) with Subdweller Machine Gun Performance ------------- Evolutions (0) 0 Regions Visited (2) 400 Robots Destroyed (37) 185 Value Destroyed (763) 763 Prototype IDs (0) 0 Alien Tech Used (0) 0 Bonus (0) 0 TOTAL SCORE: 1348 Bonus ------- None Cogmind --------- Core Integrity 0/250 Matter 227/300 Energy 98/100 System Corruption 0% Temperature Cool (0) Movement Treading (160) Location -10/Subcaves Parts ------- > --- POWER (1) -------- (None) > --- PROPULSION (2) --- Light Treads Light Treads > --- UTILITY (2) ------ Large Storage Unit Light Armor Plating > --- WEAPON (2) ------- Light Assault Rifle Subdweller Machine Gun > --- INVENTORY (15) --- Light Treads Light Treads Light Treads Medium Storage Unit Huge Storage Unit High-capacity Matter Pod (200) Structural Scanner Improved Terrain Scanner Core Shielding Hacking Suite Medium Laser Light Assault Rifle Grenade Launcher Hammer Peak State ------------ > --- POWER ------------ Light Nuclear Core > --- PROPULSION ------- Light Treads Light Treads > --- UTILITY ---------- Medium Storage Unit Core Shielding > --- WEAPON ----------- Medium Laser Assault Rifle > --- INVENTORY -------- Light Treads Light Treads Light Treads Huge Storage Unit Structural Scanner EM Pulse Gun Light Assault Rifle Light Assault Rifle Grenade Launcher Hammer [Rating: 10] Favorites ----------- Power Light Ion Engine Engine Light Ion Engine Power Core Light Nuclear Core Propulsion Light Treads Treads Light Treads Leg Aluminum Leg Utility Core Shielding Device Terrain Scanner Storage Large Storage Unit Protection Core Shielding Weapon Assault Rifle Energy Gun Medium Laser Ballistic Gun Assault Rifle Build | -11 -10 -10 ------- Run | Jun Mat Sub Slots Evolved . | . . . Power . | . . . Propulsion . | . . . Utility . | . . . Weapon . | . . . Parts Attached 44 | . 21 23 Power 5 | . 3 2 Engine 4 | . 2 2 Core 1 | . 1 . Reactor . | . . . Propulsion 10 | . 6 4 Treads 10 | . 6 4 Leg . | . . . Wheel . | . . . Hover . | . . . Flight . | . . . Utility 18 | . 6 12 Device 7 | . 1 6 Storage 4 | . 4 . Processor . | . . . Hackware . | . . . Protection 7 | . 1 6 Artifact . | . . . Weapon 11 | . 6 5 Energy Gun 4 | . 3 1 Energy Cannon . | . . . Ballistic Gun 7 | . 3 4 Ballistic Cannon . | . . . Launcher . | . . . Special Weapon . | . . . Impact Weapon . | . . . Slashing Weapon . | . . . Piercing Weapon . | . . . Special Melee Weapon . | . . . Unidentified Prototypes . | . . . Parts Lost 6 | . 1 5 Power 3 | . 1 2 Propulsion 1 | . . 1 Utility . | . . . Weapon 2 | . . 2 Highest Loss Streak 3 | . 1 3 To Critical Strikes . | . . . Average Slot Usage (%) 99 | . 99 98 Engine 8 | . 7 11 Core 4 | . 5 . Treads 23 | . 22 28 Leg 4 | . 4 . Device 3 | . 3 5 Storage 14 | . 14 14 Protection 10 | . 10 8 Energy Gun 10 | . 11 4 Ballistic Gun 17 | . 16 23 Naked Turns . | . . . Heaviest Build 33 | 10 30 33 Greatest Support 40 | 20 40 40 Greatest Overweight (x) . | . . . Average Overweight (x) . | . . . Largest Inventory Capacity 25 | . 25 15 Average Capacity 12 | . 11 15 Most Carried 15 | . 15 15 Average Carried 11 | . 11 13 Final Capacity 15 | 8 15 15 Final Carried 15 | 6 15 14 Class Distribution -------------------- 91% | Mutant 8% | Scavenger-Mutant Dominant Class ---------------- Mutant | -10/Materials Scavenger-Mutant | -10/Subcaves Resources | -11 -10 -10 ----------- Run | Jun Mat Sub Matter Collected 1066 | 177 674 215 Remotely . | . . . Salvage Created 1050 | . 764 286 Parts 87 | . 69 18 Haulers Intercepted 2 | . 2 . Recyclers Shooed 1 | . 1 . Parts Field Recycled . | . . . Retrieved Matter . | . . . Parts Self-Destructed 8 | . . 8 Prevented . | . . . Kills | -11 -10 -10 ------- Run | Jun Mat Sub Combat Hostiles Destroyed 29 | . 21 8 Guns 28 | . 20 8 AOE 1 | . 1 . Classes Destroyed 9 | . 8 1 Worker 1 | . 1 . Builder 1 | . 1 . Hauler 2 | . 2 . Mechanic 1 | . 1 . Watcher 3 | . 3 . Swarmer 15 | . 12 3 Grunt 6 | . 6 . Sentry 1 | . . 1 Subdweller 7 | . 3 4 Best Kill Streak 5 | . 5 3 Combat Bots Only 5 | . 5 3 Max Kills in Single Turn 2 | . 2 1 Gunslinging . | . . . Exploded 1 | . 1 . Melee . | . . . Uniques/NPCs Destroyed . | . . . Combat | -11 -10 -10 -------- Run | Jun Mat Sub Damage Taken 1718 | . 650 1068 Core 270 | . 116 154 Absorbed by Shields . | . . . Redirected to Shielding 36 | . 15 21 Core Remaining (%) 100 | 100 . . Volleys Fired 111 | . 75 36 Largest 2 | . 2 2 Hottest 70 | . 70 70 Shots Fired 217 | . 149 68 Gun 217 | . 149 68 Cannon . | . . . Launcher . | . . . Special . | . . . Kinetic 148 | . 96 52 Thermal 46 | . 34 12 Explosive . | . . . Electromagnetic 23 | . 19 4 Robot Hit Streak 22 | . 13 22 Robot Miss Streak 5 | . 5 2 Penetration Max . | . . . Secondary Targets 4 | . 2 2 Max Gunslinging Chain 1 | . 1 1 Shots Hit Robots 145 | . 87 58 Core Hits 62 | . 44 18 Critical Kills 1 | . 1 . Critical Parts Destroyed 1 | . 1 . Critical Strikes 5 | . 5 . Burn 2 | . 2 . Destroy 2 | . 2 . Corrupt 1 | . 1 . Melee Attacks . | . . . Impact . | . . . Slashing . | . . . Piercing . | . . . Sneak Attacks . | . . . Combat Hostiles . | . . . Follow-up Attacks . | . . . Damage Inflicted 1912 | . 1172 740 Guns 1891 | . 1151 740 Cannons . | . . . Explosions 21 | . 21 . Melee . | . . . Ramming . | . . . Kinetic 1275 | . 720 555 Thermal 447 | . 307 140 Explosive . | . . . Electromagnetic 190 | . 145 45 Impact . | . . . Slashing . | . . . Piercing . | . . . Highest Corruption . | . . . Average Corruption . | . . . Corruption Purged . | . . . Corruption Blocked . | . . . Overload Shots . | . . . Overflow Damage . | . . . Projectiles . | . . . Explosions . | . . . Melee . | . . . Knockbacks . | . . . Impact . | . . . Kinetic . | . . . Secondary . | . . . Self-Inflicted Damage . | . . . Shots . | . . . Rammed . | . . . Targets Rammed . | . . . Kicked . | . . . Crushed . | . . . Highest Temperature 63 | . 63 . Average Temperature 21 | . 21 . Received Heat Transfer 240 | . 159 81 Siege Activations . | . . . Robots Corrupted . | . . . Combat Hostiles . | . . . Parts Fried . | . . . Impact Corruptions . | . . . Robots Melted . | . . . Combat Hostiles . | . . . Parts Melted 4 | . 3 1 Heat Transferred 1419 | . 1012 407 Parts Sabotaged . | . . . Parts Stolen . | . . . Parts Stripped . | . . . Power Chain Reactions 1 | . 1 . Missiles Intercepted . | . . . Alert | -11 -10 -10 ------- Run | Jun Mat Sub Peak Influence 273 | . 273 . Initial . | . . . Average 108 | . 108 . Maximum Alert Level 1 | . 1 . Low Security (%) 87 | . 87 . Level 1 12 | . 12 . Level 2 . | . . . Level 3 . | . . . Level 4 . | . . . Level 5 . | . . . High Security . | . . . Max Security . | . . . Squads Dispatched 2 | . 2 . Investigation 1 | . 1 . Extermination . | . . . Reinforcement 1 | . 1 . Assault . | . . . Garrison . | . . . Intercept . | . . . Searches Triggered . | . . . Construction Impeded . | . . . Haulers Reinforced . | . . . Active Scanning Responses . | . . . Cargo Convoy Interrupts . | . . . Stealth | -11 -10 -10 --------- Run | Jun Mat Sub Distress Signals 1 | . 1 . Communications Jammed . | . . . Distress Signals . | . . . Times Spotted 40 | . 30 10 Peak Tracking Total 5 | . 5 3 Tactical Retreats 3 | . 3 . Traps | -11 -10 -10 ------- Run | Jun Mat Sub Traps Triggered 1 | . 1 . Indirectly . | . . . Trap Hack Attempts . | . . . Triggered . | . . . Disarmed . | . . . Reprogrammed . | . . . Reused . | . . . Traps Extracted . | . . . Installed . | . . . Triggered . | . . . Machines | -11 -10 -10 ---------- Run | Jun Mat Sub Machines Disabled . | . . . Max in Single Turn . | . . . Machines Repaired . | . . . Machines Sabotaged . | . . . Overloaded Fab Kills . | . . . Hacking | -11 -10 -10 --------- Run | Jun Mat Sub Machines Accessed 6 | . 6 . Terminals 6 | . 6 . Fabricators . | . . . Repair Stations . | . . . Recycling Units . | . . . Scanalyzers . | . . . Garrison Access . | . . . Total Hacks 14 | . 14 . Successful 7 | . 7 . Failed 7 | . 7 . Catastrophic 3 | . 3 . Database Lockouts . | . . . Manual 9 | . 9 . Terminals 14 | . 14 . Fabricators . | . . . Repair Stations . | . . . Recycling Units . | . . . Scanalyzers . | . . . Garrison Access . | . . . Terminal Hacks 7 | . 7 . Robot Analysis 6 | . 6 . Zone Layout 1 | . 1 . Fabricator Hacks . | . . . Repair Station Hacks . | . . . Recycling Unit Hacks . | . . . Scanalyzer . | . . . Garrison Access Hacks . | . . . Unauthorized Hacks . | . . . Terminals . | . . . Fabricators . | . . . Repair Stations . | . . . Recycling Units . | . . . Scanalyzers . | . . . Garrison Access . | . . . Data Cores Recovered . | . . . Used . | . . . Hacking Detections 6 | . 6 . Full Trace Events . | . . . Feedback Events . | . . . Feedback Blocked . | . . . Robot Schematics Acquired . | . . . Robots Built . | . . . Authchips . | . . . Time . | . . . Total Robot Build Rating . | . . . Part Schematics Acquired . | . . . Parts Built . | . . . Authchips . | . . . Time . | . . . Total Part Build Rating . | . . . Parts Repaired . | . . . Time . | . . . Parts Recycled . | . . . Recycled Matter . | . . . Retrieved Matter . | . . . Retrieved Components . | . . . Parts Scanalyzed . | . . . Part Schematics Acquired . | . . . Parts Damaged . | . . . Bothacking | -11 -10 -10 ------------ Run | Jun Mat Sub Used RIF Installer . | . . . Robots Hacked . | . . . Non-combat . | . . . Combat . | . . . Robot Hacks Applied . | . . . Relay Couplers Released . | . . . Fabnet Peak Effective % . | . . . Robots Rewired . | . . . Allies Hacked . | . . . Hacks Repelled . | . . . Allies | -11 -10 -10 -------- Run | Jun Mat Sub Total Allies . | . . . Largest Group . | . . . Highest-Rated Group . | . . . Highest-Rated Ally . | . . . Total Orders . | . . . Ally Attacks . | . . . Total Damage . | . . . Kills . | . . . Allies Corrupted . | . . . Allies Melted . | . . . Intel | -11 -10 -10 ------- Run | Jun Mat Sub Robot Analysis Total 6 | . 6 . Derelict Logs Recovered . | . . . Drone Launches . | . . . Drone Recoveries . | . . . Exploration | -11 -10 -10 ------------- Run | Jun Mat Sub Turns Passed 2454 | . 1989 465 Spaces Moved 1281 | 1 1094 186 Core . | . . . Treads 1063 | . 877 186 Legs 218 | 1 217 . Wheels . | . . . Hover . | . . . Flight . | . . . Fastest Speed 120 | 120 120 160 Average Speed 153 | 120 152 160 Slowest Speed 160 | 120 160 160 Overloaded Moves . | . . . Propulsion Burnouts . | . . . Robots Hopped . | . . . Cave-ins Triggered . | . . . Exploration Rate (%) 38 | 2 96 17 Regions Visited 2 Branch Regions 1 Pre-discovered Areas . | . . . Known Exits Taken . | . . . Unknown Exits Taken 2 | 1 1 . Scrap Searched . | . . . Spaces Dug . | . . . Terrain Destroyed 2 | . 2 . Melee . | . . . Projectile . | . . . AOE 2 | . 2 . Terrain Rammed . | . . . Walls Destroyed . | . . . Machines Disabled . | . . . Actions | -11 -10 -10 --------- Run | Jun Mat Sub Total 1563 | . 1279 284 Wait 86 | . 51 35 Move 1279 | . 1093 186 Hop . | . . . Pick Up 23 | . 21 2 Fast Attach 4 | . 1 3 Attach 8 | . 5 3 Detach . | . . . Swap 32 | . 15 17 Drop 20 | . 18 2 Fire 111 | . 75 36 Melee . | . . . Ram . | . . . Kick . | . . . Crush . | . . . Escape Stasis . | . . . Rewire . | . . . Trap . | . . . Miscellaneous . | . . . Route ------- -11/Junkyard -10/Materials (discovered 5 exits: [*Mat x3] / [*Min] / [*Sub]) -10/Subcaves History --------- Turn | Location | Event 1 | -11/Junkyard | Discovered new exit (range 0) 1 | -11/Junkyard | Entered Materials 119 | -10/Materials | Discovered new exit (range 7) 254 | -10/Materials | Discovered new exit (range 16) 302 | -10/Materials | Build established: Mutant 887 | -10/Materials | Discovered new exit (range 4) 1000 | -10/Materials | Derelicts attacked the area 1357 | -10/Materials | Discovered new exit (range 15) 1980 | -10/Materials | Discovered new exit (range 6) 1990 | -10/Materials | Entered Subcaves 2016 | -10/Subcaves | Core integrity fell below 50% 2061 | -10/Subcaves | Lost 3 parts (1p1n1w) 2152 | -10/Subcaves | Core integrity fell below 20% 2455 | -10/Subcaves | Destroyed by DG-ZTG(R) with Subdweller Machine Gun Last Messages --------------- 02304_ Y-45 Defender destroyed. 02307_ Acquired 52 matter. 02310_ Lgt. Treads fries itself beyond repair. 02310_ Heat Sink fries itself beyond repair. 02310_ Acquired Lgt. Armor Plating. 02311_ Imp. Ion Engine fries itself beyond repair. 02357_ Sub. Power Source shoots sparks and powers down. 02357_ Dropped Broken Sub. Power Source. 02360_ S-10 Pest destroyed. 02360_ Switching to secondary target: S-10 Pest. 02362_ S-10 Pest destroyed. 02365_ Flight Unit fries itself beyond repair. 02365_ S-10 Pest destroyed. 02368_ Lgt. Assault Rifle fries itself beyond repair. 02369_ Lgt. Ion Engine fries itself beyond repair. 02371_ Acquired 27 matter. 02372_ Flight Unit fries itself beyond repair. 02377_ Acquired Lgt. Ion Engine. 02379_ Acquired 16 matter. 02453_ Lgt. Ion Engine destroyed. Map ----- +----------------------------------------------------+ | ??## ### ###### ### ###??????????????? | | ??## ## ####### ####### #####?????????????? | | ??## ####### ##############????????????? | | ??## ### ### ####?#### ####???????????? | | ??### ## ####???? ####??????????? | | ???## ## ###### ###??????????? | | ???### * ##### ##??????????? | | ??#### ## ##??????????? | | ??### ##??????????? | | ??## ##??????????? | | ??## ##??????????? | | ?### ### ????????????????? | | ### #### ????????????????? | | ## ## ###??????????????????? | | ### #### ### ###??????????????????? | | #### ########## ### ###??????????????????? | | ##### ########## ## ###?????????????????? | | ###?## ##??????## ### ##?????????????????? | | ##??# ##?????? #### ###?????????????????? | | #???## ##?????? #### ##### #??????????? | | ????### ????? #### #???????????? | | ????#### ??? ##### # # # #????????????? | | ?????### ?? ## #### #####?? ##????????????? | | ???????# ?? ###??## ####???????????????????? | | ???????# ????????### ###????????????????????? | | ???????# ??????????## @ ###???????????????????? | | ???????? ????????????## RR####???????????????????? | | ?????????????????????### # ???????????????????? | | ?????????????????????### ???????????????? | | ?????????????????????## #????????? | | ????????????????????? # ## ##????????? | | ???????????????????? ##### ?? ###????????? | | ??????????????????? ###### ???####????????? | | ?????????????????? ####???????????????????? | | ????????????????? "" ###????????????????????? | | ??????????????? #### #?????????????????????? | | ?????????????" ###### ??????????????????????? | | ?????????????"######?### ??????????????????????? | | ????????????? #"" ???" #?????????????????????? | | ??????????????????????? ###?????????????????????? | | ??????????????????????? ####?????????????????????? | | ???????????????????????"##???????????????????????? | | ?????????????????????????????????????????????????? | | ?????????????????????????????????????????????????? | | ?????????????????????????????????????????????????? | | ?????????????????????????????????????????????????? | | ?????????????????????????????????????????????????? | | ?????????????????????????????????????????????????? | | ?????????????????????????????????????????????????? | | ?????????????????????????????????????????????????? | +----------------------------------------------------+ Best States ------------- Heat Dissipation 25 Energy Generation 15 Energy Capacity 250 Matter Stores 300 Matter Capacity 300 Sight Range 16 Terrain Scan Range 14 Terrain Scan Density 10 Armor Coverage 150 Core Shielding 20 Evasion (%) 55 Recoil Reduction 2 Item Schematics ----------------- None Robot Schematics ------------------ None Fabricated ------------ Nothing Alien Tech Used ----------------- None Achievements -------------- None Challenges ------------ None Game ------ Seed MiniPlasmaNullifier Manual? 0 Play Time 00:31:53 Cumulative 164.7 hours Start 2023.10.10 @ 14:37:53 End 2023.10.10 @ 18:41:08 Sessions 5 Manual Loads 0 Difficulty Rogue Special Mode None Game No. 105 Rogue 105 Adventurer 0 Explorer 0 Win Type - Total 3 Types 2/0/1/0/0/0/0/0/0 Lore% 50 Gallery% 51 Achievement% 49 Wizard Run 0 Options --------- ASCII 0 Keyboard 0 Movement Mouse Keybinds 0 Fullscreen 1 Font 18/SmallcapsGlow Map View 76x50 Tactical HUD 1 Map Filters NONE Filters NONE Steam X RUN: 56f62ec1-5a5b-42e3-bc7e-b1b3722561f5